[Event "Vastgota Open 2023"]
[Site "Skara stadshotell, Jarnvagsgatan 5, Skara, Sweden"]
[Date "2023.02.18"]
[Round "6.4"]
[White "Trost, Edvin"]
[Black "Sivuk, Vitaly"]
[Result "0-1"]
[TimeControl "15 minutes + 5 seconds per move from move one (Round 1 - 2) / 30 minutes + 10 seconds per move from move one (Round 3 - 9)"]
[WhiteTitle "FM"]
[BlackTitle "GM"]
[WhiteFideId "1729519"]
[BlackFideId "14116502"]
[WhiteElo "2226"]
[BlackElo "2502"]

1. d4 {[%clk 00:30:18]} {[%emt 00:00:02]} Nf6 {[%clk 00:30:18]} {[%emt
00:00:01]} 2. c4 {[%clk 00:30:27]} {[%emt 00:00:02]} e6 {[%clk 00:30:26]}
{[%emt 00:00:01]} 3. Nf3 {[%clk 00:30:33]} {[%emt 00:00:05]} d5 {[%clk
00:30:34]} {[%emt 00:00:01]} 4. g3 {[%clk 00:30:42]} {[%emt 00:00:02]} Be7
{[%clk 00:30:42]} {[%emt 00:00:02]} 5. Bg2 {[%clk 00:30:47]} {[%emt 00:00:05]}
O-O {[%clk 00:30:49]} {[%emt 00:00:02]} 6. Nc3 {[%clk 00:30:53]} {[%emt
00:00:05]} Nbd7 {[%clk 00:30:57]} {[%emt 00:00:02]} 7. Qd3 {[%clk 00:29:40]}
{[%emt 00:01:23]} a6 {[%clk 00:31:05]} {[%emt 00:00:02]} 8. cxd5 {[%clk
00:29:08]} {[%emt 00:00:42]} exd5 {[%clk 00:31:02]} {[%emt 00:00:13]} 9. O-O
{[%clk 00:29:13]} {[%emt 00:00:05]} c6 {[%clk 00:30:58]} {[%emt 00:00:13]} 10.
Bf4 {[%clk 00:28:54]} {[%emt 00:00:29]} Re8 {[%clk 00:31:02]} {[%emt 00:00:06]}
11. a3 {[%clk 00:28:25]} {[%emt 00:00:39]} Nb6 {[%clk 00:30:37]} {[%emt
00:00:35]} 12. Rfe1 {[%clk 00:26:45]} {[%emt 00:01:50]} Be6 {[%clk 00:27:51]}
{[%emt 00:02:55]} 13. Qc2 {[%clk 00:25:17]} {[%emt 00:01:39]} Nc4 {[%clk
00:26:22]} {[%emt 00:01:38]} 14. Rad1 {[%clk 00:23:36]} {[%emt 00:01:52]} Qc8
{[%clk 00:25:18]} {[%emt 00:01:14]} 15. Ne5 {[%clk 00:22:13]} {[%emt 00:01:33]}
Nd6 {[%clk 00:21:26]} {[%emt 00:04:01]} 16. Na4 {[%clk 00:21:34]} {[%emt
00:00:50]} Qd8 {[%clk 00:21:21]} {[%emt 00:00:15]} 17. Nc5 {[%clk 00:20:56]}
{[%emt 00:00:49]} Bf5 {[%clk 00:21:25]} {[%emt 00:00:05]} 18. Qb3 {[%clk
00:21:05]} {[%emt 00:00:01]} Ra7 {[%clk 00:21:30]} {[%emt 00:00:05]} 19. h3
{[%clk 00:18:45]} {[%emt 00:02:30]} Nb5 {[%clk 00:21:12]} {[%emt 00:00:28]} 20.
Na4 {[%clk 00:17:23]} {[%emt 00:01:33]} h6 {[%clk 00:20:51]} {[%emt 00:00:30]}
21. Nc3 {[%clk 00:16:00]} {[%emt 00:01:34]} Nd6 {[%clk 00:17:57]} {[%emt
00:03:03]} 22. Na4 {[%clk 00:11:41]} {[%emt 00:04:30]} Bf8 {[%clk 00:16:21]}
{[%emt 00:01:45]} 23. Nc5 {[%clk 00:10:07]} {[%emt 00:01:44]} Nb5 {[%clk
00:16:10]} {[%emt 00:00:21]} 24. e4 {[%clk 00:07:42]} {[%emt 00:02:35]} Bc8
{[%clk 00:12:35]} {[%emt 00:03:44]} 25. exd5 {[%clk 00:06:54]} {[%emt
00:00:59]} Nxd5 {[%clk 00:10:23]} {[%emt 00:02:22]} 26. a4 {[%clk 00:07:03]}
Nd6 {[%clk 00:09:46]} {[%emt 00:00:46]} 27. Bxd5 {[%clk 00:06:04]} {[%emt
00:01:10]} cxd5 {[%clk 00:09:53]} {[%emt 00:00:02]} 28. Qxd5 {[%clk 00:06:13]}
{[%emt 00:00:02]} Bxh3 {[%clk 00:07:28]} {[%emt 00:02:35]} 29. g4 {[%clk
00:05:04]} {[%emt 00:01:20]} h5 {[%clk 00:04:42]} {[%emt 00:02:55]} 30. Ng6
{[%clk 00:05:11]} {[%emt 00:00:03]} Bxg4 {[%clk 00:04:03]} {[%emt 00:00:49]} 31.
Nxf8 {[%clk 00:05:07]} {[%emt 00:00:14]} Bxd1 {[%clk 00:03:42]} {[%emt
00:00:30]} 32. Rxd1 {[%clk 00:04:48]} {[%emt 00:00:30]} Qh4 {[%clk 00:02:50]}
{[%emt 00:01:02]} 33. Qf3 {[%clk 00:03:55]} {[%emt 00:01:03]} Nf5 {[%clk
00:02:43]} {[%emt 00:00:17]} 34. Bh2 {[%clk 00:00:12]} {[%emt 00:03:53]} Nxd4
{[%clk 00:01:57]} {[%emt 00:00:55]} 35. Qd3 {[%clk 00:00:12]} {[%emt 00:00:11]}
Qg4+ {[%clk 00:00:47]} {[%emt 00:01:20]} 36. Kh1 {[%clk 00:00:17]} {[%emt
00:00:05]} Kxf8 {[%clk 00:00:38]} {[%emt 00:00:20]} 37. Rg1 {[%clk 00:00:16]}
{[%emt 00:00:11]} Qf3+ {[%clk 00:00:38]} {[%emt 00:00:10]} 38. Qxf3 {[%clk
00:00:25]} Nxf3 {[%clk 00:00:47]} 39. Nd7+ {[%clk 00:00:24]} {[%emt 00:00:12]}
Ke7 {[%clk 00:00:52]} {[%emt 00:00:04]} 40. Rd1 {[%clk 00:00:28]} {[%emt
00:00:06]} Nxh2 {[%clk 00:00:59]} {[%emt 00:00:03]} 0-1

[Event "Vastgota Open 2023"]
[Site "Skara stadshotell, Jarnvagsgatan 5, Skara, Sweden"]
[Date "2023.02.18"]
[Round "6.5"]
[White "Ronneland, Daniel"]
[Black "Kockum, Anton Frisk"]
[Result "1/2-1/2"]
[TimeControl "15 minutes + 5 seconds per move from move one (Round 1 - 2) / 30 minutes + 10 seconds per move from move one (Round 3 - 9)"]
[BlackTitle "FM"]
[WhiteFideId "1702130"]
[BlackFideId "1709143"]
[WhiteElo "2188"]
[BlackElo "2367"]

1. d4 {[%clk 00:30:18]} {[%emt 00:00:01]} e6 {[%clk 00:30:18]} {[%emt
00:00:02]} 2. c4 {[%clk 00:29:27]} {[%emt 00:01:01]} Nf6 {[%clk 00:30:14]}
{[%emt 00:00:15]} 3. Nf3 {[%clk 00:29:27]} {[%emt 00:00:09]} Bb4+ {[%clk
00:30:22]} {[%emt 00:00:03]} 4. Nbd2 {[%clk 00:29:17]} {[%emt 00:00:19]} b6
{[%clk 00:30:00]} {[%emt 00:00:32]} 5. g3 {[%clk 00:26:43]} {[%emt 00:02:43]}
Bb7 {[%clk 00:29:59]} {[%emt 00:00:12]} 6. Bg2 {[%clk 00:26:46]} {[%emt
00:00:07]} c5 {[%clk 00:28:37]} {[%emt 00:01:32]} 7. a3 {[%clk 00:24:51]}
{[%emt 00:02:06]} Bxd2+ {[%clk 00:28:29]} {[%emt 00:00:18]} 8. Qxd2 {[%clk
00:24:27]} {[%emt 00:00:33]} cxd4 {[%clk 00:26:24]} {[%emt 00:02:15]} 9. O-O
{[%clk 00:22:57]} {[%emt 00:01:40]} O-O {[%clk 00:26:30]} {[%emt 00:00:04]} 10.
b4 {[%clk 00:18:17]} {[%emt 00:04:49]} e5 {[%clk 00:21:31]} {[%emt 00:05:09]}
11. Nxe5 {[%clk 00:17:32]} {[%emt 00:00:54]} Bxg2 {[%clk 00:21:31]} {[%emt
00:00:12]} 12. Kxg2 {[%clk 00:17:27]} {[%emt 00:00:15]} Nc6 {[%clk 00:21:40]}
{[%emt 00:00:01]} 13. Nf3 {[%clk 00:14:37]} {[%emt 00:03:01]} d5 {[%clk
00:17:55]} {[%emt 00:03:54]} 14. Nxd4 {[%clk 00:13:54]} {[%emt 00:00:53]} Nxd4
{[%clk 00:18:04]} {[%emt 00:00:02]} 15. Qxd4 {[%clk 00:13:54]} {[%emt
00:00:09]} dxc4 {[%clk 00:18:12]} {[%emt 00:00:02]} 16. Qxc4 {[%clk 00:13:12]}
{[%emt 00:00:52]} Rc8 {[%clk 00:18:20]} {[%emt 00:00:02]} 17. Qb3 {[%clk
00:12:40]} {[%emt 00:00:41]} Re8 {[%clk 00:17:30]} {[%emt 00:01:02]} 18. Re1
{[%clk 00:09:03]} {[%emt 00:03:46]} h5 {[%clk 00:05:54]} {[%emt 00:11:46]} 19.
Bg5 {[%clk 00:08:35]} {[%emt 00:00:33]} Qd5+ {[%clk 00:04:53]} {[%emt
00:01:16]} 20. Qxd5 {[%clk 00:08:39]} {[%emt 00:00:06]} Nxd5 {[%emt 00:00:05]}
21. e4 {[%clk 00:05:01]} {[%emt 00:03:45]} Nc3 {[%clk 00:05:10]} {[%emt
00:00:02]} 22. Rac1 {[%clk 00:04:52]} {[%emt 00:00:17]} f6 {[%clk 00:04:01]}
{[%emt 00:01:21]} 23. Bd2 {[%clk 00:04:04]} {[%emt 00:00:57]} Nb5 {[%clk
00:04:09]} {[%emt 00:00:03]} 24. a4 {[%clk 00:03:40]} {[%emt 00:00:33]} Nd6
{[%clk 00:04:17]} {[%emt 00:00:02]} 25. Rxc8 {[%clk 00:01:03]} {[%emt
00:02:48]} Rxc8 {[%clk 00:04:27]} {[%emt 00:00:01]} 26. e5 {[%clk 00:01:04]}
{[%emt 00:00:08]} fxe5 {[%clk 00:03:39]} {[%emt 00:00:57]} 27. Rxe5 {[%clk
00:01:10]} {[%emt 00:00:04]} Rc2 {[%clk 00:02:52]} {[%emt 00:00:58]} 28. Rd5
{[%clk 00:00:52]} {[%emt 00:00:27]} Nc4 {[%clk 00:02:36]} {[%emt 00:00:25]} 29.
Bf4 {[%clk 00:00:57]} {[%emt 00:00:04]} Ra2 {[%clk 00:01:56]} {[%emt 00:00:52]}
30. Rxh5 {[%clk 00:00:36]} {[%emt 00:00:31]} Rxa4 {[%clk 00:02:00]} {[%emt
00:00:06]} 31. b5 {[%clk 00:00:43]} {[%emt 00:00:03]} Na3 {[%clk 00:00:45]}
{[%emt 00:01:26]} 32. Bd2 {[%clk 00:00:32]} {[%emt 00:00:20]} Rc4 {[%clk
00:00:34]} {[%emt 00:00:22]} 33. Rd5 {[%clk 00:00:36]} {[%emt 00:00:06]} Rc2
{[%clk 00:00:29]} {[%emt 00:00:15]} 34. Bf4 {[%clk 00:00:39]} {[%emt 00:00:05]}
Kh7 {[%clk 00:00:15]} {[%emt 00:00:26]} 35. Bb8 {[%clk 00:00:43]} {[%emt
00:00:06]} Nc4 {[%clk 00:00:19]} {[%emt 00:00:06]} 36. Kf3 {[%clk 00:00:43]}
{[%emt 00:00:08]} Rc3+ {[%clk 00:00:27]} {[%emt 00:00:03]} 37. Ke4 {[%clk
00:00:47]} {[%emt 00:00:06]} Ra3 {[%clk 00:00:22]} {[%emt 00:00:16]} 38. Rd7
{[%clk 00:00:43]} {[%emt 00:00:13]} Ra2 {[%clk 00:00:28]} {[%emt 00:00:04]} 39.
Rxa7 {[%clk 00:00:20]} {[%emt 00:00:34]} Rxf2 {[%clk 00:00:26]} {[%emt
00:00:11]} 40. Kd4 {[%clk 00:00:15]} {[%emt 00:00:15]} Nd2 {[%clk 00:00:15]}
{[%emt 00:00:22]} 41. Be5 {[%clk 00:00:18]} {[%emt 00:00:05]} Rxh2 {[%clk
00:00:22]} {[%emt 00:00:05]} 42. Rxg7+ {[%clk 00:00:24]} {[%emt 00:00:03]} Kh6
{[%clk 00:00:31]} {[%emt 00:00:02]} 43. Rb7 {[%clk 00:00:28]} {[%emt 00:00:05]}
Nf3+ {[%clk 00:00:40]} {[%emt 00:00:02]} 44. Ke4 {[%clk 00:00:31]} {[%emt
00:00:05]} Nxe5 {[%clk 00:00:48]} {[%emt 00:00:03]} 45. Kxe5 {[%clk 00:00:39]}
{[%emt 00:00:02]} Rh5+ {[%clk 00:00:57]} {[%emt 00:00:02]} 46. Kd6 {[%clk
00:00:20]} {[%emt 00:00:28]} Rxb5 {[%clk 00:01:04]} {[%emt 00:00:04]} 47. Kc6
{[%clk 00:00:29]} Rb4 {[%clk 00:01:05]} {[%emt 00:00:10]} 48. Rxb6 {[%clk
00:00:36]} {[%emt 00:00:03]} Rxb6+ {[%clk 00:01:13]} {[%emt 00:00:02]} 1/2-1/2

[Event "Vastgota Open 2023"]
[Site "Skara stadshotell, Jarnvagsgatan 5, Skara, Sweden"]
[Date "2023.02.18"]
[Round "6.6"]
[White "Silseth, Simon"]
[Black "Rasti, Arvin"]
[Result "1/2-1/2"]
[TimeControl "15 minutes + 5 seconds per move from move one (Round 1 - 2) / 30 minutes + 10 seconds per move from move one (Round 3 - 9)"]
[WhiteTitle "FM"]
[WhiteFideId "1702440"]
[BlackFideId "1741160"]
[WhiteElo "2258"]
[BlackElo "2179"]

1. d4 {[%clk 00:30:17]} {[%emt 00:00:03]} Nf6 {[%clk 00:30:18]} {[%emt
00:00:03]} 2. c4 {[%clk 00:30:25]} {[%emt 00:00:01]} g6 {[%clk 00:30:23]}
{[%emt 00:00:07]} 3. Nc3 {[%clk 00:30:32]} {[%emt 00:00:02]} Bg7 {[%clk
00:30:32]} {[%emt 00:00:01]} 4. e4 {[%clk 00:30:36]} {[%emt 00:00:06]} d6
{[%clk 00:30:40]} {[%emt 00:00:01]} 5. Nf3 {[%clk 00:30:36]} {[%emt 00:00:10]}
Bg4 {[%clk 00:30:48]} {[%emt 00:00:02]} 6. Be3 {[%clk 00:29:22]} {[%emt
00:01:24]} O-O {[%clk 00:30:50]} {[%emt 00:00:09]} 7. Be2 {[%clk 00:29:12]}
{[%emt 00:00:19]} e5 {[%clk 00:30:48]} {[%emt 00:00:12]} 8. d5 {[%clk
00:29:14]} {[%emt 00:00:08]} a5 {[%clk 00:30:48]} {[%emt 00:00:11]} 9. c5
{[%clk 00:29:06]} {[%emt 00:00:18]} dxc5 {[%clk 00:29:54]} {[%emt 00:01:04]} 10.
Bxc5 {[%clk 00:29:11]} {[%emt 00:00:04]} Re8 {[%clk 00:30:00]} {[%emt
00:00:04]} 11. O-O {[%clk 00:29:02]} {[%emt 00:00:19]} Bf8 {[%clk 00:29:38]}
{[%emt 00:00:33]} 12. Bxf8 {[%clk 00:28:19]} {[%emt 00:00:53]} Kxf8 {[%clk
00:29:45]} {[%emt 00:00:02]} 13. Rc1 {[%clk 00:28:09]} {[%emt 00:00:19]} Kg7
{[%clk 00:29:19]} {[%emt 00:00:37]} 14. Nd2 {[%clk 00:26:59]} {[%emt 00:01:20]}
Bxe2 {[%clk 00:28:57]} {[%emt 00:00:33]} 15. Qxe2 {[%clk 00:27:05]} {[%emt
00:00:03]} c6 {[%clk 00:29:04]} {[%emt 00:00:04]} 16. dxc6 {[%clk 00:25:22]}
{[%emt 00:01:53]} Nxc6 {[%clk 00:29:12]} {[%emt 00:00:02]} 17. Nf3 {[%clk
00:24:11]} {[%emt 00:01:20]} Nd4 {[%clk 00:27:32]} {[%emt 00:01:51]} 18. Qd3
{[%clk 00:22:06]} {[%emt 00:02:15]} Qb6 {[%clk 00:26:47]} {[%emt 00:00:55]} 19.
Nxd4 {[%clk 00:20:00]} {[%emt 00:02:16]} Qxd4 {[%clk 00:25:57]} {[%emt
00:00:59]} 20. Rfd1 {[%clk 00:17:37]} {[%emt 00:02:33]} Rac8 {[%clk 00:23:03]}
{[%emt 00:03:04]} 21. Qb5 {[%clk 00:14:18]} {[%emt 00:03:29]} Qb4 {[%clk
00:22:10]} {[%emt 00:01:04]} 22. Qe2 {[%clk 00:12:30]} {[%emt 00:01:57]} Qc4
{[%clk 00:21:25]} {[%emt 00:00:55]} 23. Qxc4 {[%clk 00:12:20]} {[%emt
00:00:21]} Rxc4 {[%clk 00:21:34]} {[%emt 00:00:01]} 24. f3 {[%clk 00:12:21]}
{[%emt 00:00:09]} Rec8 {[%clk 00:20:09]} {[%emt 00:01:34]} 25. Ne2 {[%clk
00:12:22]} {[%emt 00:00:07]} Rc2 {[%clk 00:20:06]} {[%emt 00:00:16]} 26. Kf1
{[%clk 00:11:56]} {[%emt 00:00:36]} b5 {[%clk 00:19:08]} {[%emt 00:01:08]} 27.
Ke1 {[%clk 00:11:49]} {[%emt 00:00:16]} Ne8 {[%clk 00:18:37]} {[%emt 00:00:41]}
28. Rxc2 {[%clk 00:11:50]} {[%emt 00:00:10]} Rxc2 {[%clk 00:18:46]} {[%emt
00:00:01]} 29. Rd2 {[%clk 00:11:53]} {[%emt 00:00:06]} Rxd2 {[%clk 00:18:34]}
{[%emt 00:00:24]} 30. Kxd2 {[%clk 00:12:01]} {[%emt 00:00:01]} Nd6 {[%clk
00:18:41]} {[%emt 00:00:02]} 31. Kd3 {[%clk 00:11:40]} {[%emt 00:00:31]} f5
{[%clk 00:18:29]} {[%emt 00:00:23]} 32. Nc3 {[%clk 00:11:36]} {[%emt 00:00:13]}
Kf6 {[%clk 00:18:29]} {[%emt 00:00:10]} 33. a4 {[%clk 00:11:23]} {[%emt
00:00:24]} bxa4 {[%clk 00:17:10]} {[%emt 00:01:29]} 34. Nxa4 {[%clk 00:11:28]}
{[%emt 00:00:05]} h5 {[%clk 00:16:24]} {[%emt 00:00:56]} 35. Nc5 {[%clk
00:11:18]} {[%emt 00:00:19]} h4 {[%clk 00:15:46]} {[%emt 00:00:48]} 1/2-1/2

[Event "Vastgota Open 2023"]
[Site "Skara stadshotell, Jarnvagsgatan 5, Skara, Sweden"]
[Date "2023.02.18"]
[Round "6.7"]
[White "Kucuksari, Kaan"]
[Black "Johansson, Ulf"]
[Result "1-0"]
[TimeControl "15 minutes + 5 seconds per move from move one (Round 1 - 2) / 30 minutes + 10 seconds per move from move one (Round 3 - 9)"]
[WhiteTitle "IM"]
[WhiteFideId "6380166"]
[BlackFideId "1701380"]
[WhiteElo "2380"]
[BlackElo "2155"]

1. d4 {[%clk 00:30:19]} Nf6 {[%clk 00:30:15]} {[%emt 00:00:05]} 2. Nf3 {[%clk
00:30:27]} {[%emt 00:00:02]} g6 {[%clk 00:30:20]} {[%emt 00:00:06]} 3. c4
{[%clk 00:29:55]} {[%emt 00:00:42]} Bg7 {[%clk 00:30:26]} {[%emt 00:00:03]} 4.
Nc3 {[%clk 00:30:03]} {[%emt 00:00:03]} d5 {[%clk 00:30:31]} {[%emt 00:00:04]}
5. cxd5 {[%clk 00:30:09]} {[%emt 00:00:04]} Nxd5 {[%clk 00:30:38]} {[%emt
00:00:04]} 6. g3 {[%clk 00:30:17]} {[%emt 00:00:01]} O-O {[%clk 00:29:12]}
{[%emt 00:01:36]} 7. Bg2 {[%clk 00:30:25]} {[%emt 00:00:02]} c5 {[%clk
00:28:30]} {[%emt 00:00:52]} 8. O-O {[%clk 00:30:29]} {[%emt 00:00:07]} cxd4
{[%clk 00:27:57]} {[%emt 00:00:43]} 9. Nxd4 {[%clk 00:30:32]} {[%emt 00:00:06]}
Nxc3 {[%clk 00:27:41]} {[%emt 00:00:26]} 10. bxc3 {[%clk 00:30:40]} {[%emt
00:00:02]} a6 {[%clk 00:23:23]} {[%emt 00:04:28]} 11. Rb1 {[%clk 00:30:48]}
{[%emt 00:00:02]} Qc7 {[%clk 00:23:23]} {[%emt 00:00:10]} 12. Qb3 {[%clk
00:30:31]} {[%emt 00:00:27]} Nd7 {[%clk 00:22:57]} {[%emt 00:00:36]} 13. Be3
{[%clk 00:30:35]} {[%emt 00:00:06]} Rb8 {[%clk 00:21:33]} {[%emt 00:01:34]} 14.
Rfc1 {[%clk 00:30:34]} {[%emt 00:00:11]} e5 {[%clk 00:19:41]} {[%emt 00:02:02]}
15. Nc2 {[%clk 00:30:33]} {[%emt 00:00:12]} b5 {[%clk 00:17:49]} {[%emt
00:02:02]} 16. Nb4 {[%clk 00:30:39]} {[%emt 00:00:04]} Nb6 {[%clk 00:16:16]}
{[%emt 00:01:42]} 17. Nc6 {[%clk 00:30:37]} {[%emt 00:00:12]} Be6 {[%clk
00:16:11]} {[%emt 00:00:15]} 18. Qa3 {[%clk 00:30:42]} {[%emt 00:00:06]} Nc4
{[%clk 00:15:52]} {[%emt 00:00:28]} 19. Qc5 {[%clk 00:30:16]} {[%emt 00:00:36]}
Rb7 {[%clk 00:14:48]} {[%emt 00:01:14]} 20. Nb4 {[%clk 00:29:48]} {[%emt
00:00:38]} Nxe3 {[%clk 00:14:21]} {[%emt 00:00:37]} 21. Qxe3 {[%clk 00:29:56]}
{[%emt 00:00:02]} Ra7 {[%clk 00:14:04]} {[%emt 00:00:27]} 22. Nd5 {[%clk
00:30:04]} {[%emt 00:00:02]} Bxd5 {[%clk 00:13:39]} {[%emt 00:00:34]} 23. Bxd5
{[%clk 00:30:12]} {[%emt 00:00:02]} Qe7 {[%clk 00:13:36]} {[%emt 00:00:14]} 24.
c4 {[%clk 00:30:18]} {[%emt 00:00:04]} Rd8 {[%clk 00:12:58]} {[%emt 00:00:47]}
25. Rd1 {[%clk 00:27:41]} {[%emt 00:02:48]} Rad7 {[%clk 00:12:18]} {[%emt
00:00:49]} 26. Qb3 {[%clk 00:27:40]} {[%emt 00:00:12]} Qc5 {[%clk 00:11:01]}
{[%emt 00:01:26]} 27. Bxf7+ {[%clk 00:25:35]} {[%emt 00:02:16]} Kxf7 {[%clk
00:10:52]} {[%emt 00:00:19]} 28. cxb5+ {[%clk 00:25:43]} {[%emt 00:00:02]} Kf8
{[%clk 00:10:37]} {[%emt 00:00:25]} 29. Rxd7 {[%clk 00:24:58]} {[%emt
00:00:55]} Rxd7 {[%clk 00:10:45]} {[%emt 00:00:02]} 30. bxa6 {[%clk 00:25:06]}
{[%emt 00:00:02]} Ke7 {[%clk 00:09:14]} {[%emt 00:01:42]} 31. Qg8 {[%clk
00:24:23]} {[%emt 00:00:52]} Kf6 {[%clk 00:07:23]} {[%emt 00:02:01]} 32. Qb8
{[%clk 00:24:31]} {[%emt 00:00:02]} Ke7 {[%clk 00:06:25]} {[%emt 00:01:08]} 33.
Qg8 {[%clk 00:21:53]} {[%emt 00:02:48]} Kf6 {[%clk 00:06:33]} {[%emt 00:00:03]}
34. Qa8 {[%clk 00:22:01]} {[%emt 00:00:02]} Bf8 {[%clk 00:05:18]} {[%emt
00:01:25]} 35. Qf3+ {[%clk 00:21:36]} {[%emt 00:00:34]} Ke7 {[%clk 00:04:36]}
{[%emt 00:00:51]} 36. Rb7 {[%clk 00:21:43]} {[%emt 00:00:04]} Qd4 {[%clk
00:02:44]} {[%emt 00:02:03]} 37. a7 {[%clk 00:21:05]} {[%emt 00:00:47]} 1-0

[Event "Vastgota Open 2023"]
[Site "Skara stadshotell, Jarnvagsgatan 5, Skara, Sweden"]
[Date "2023.02.18"]
[Round "6.8"]
[White "Bellon Lopez, Juan Manuel"]
[Black "Wengholm, Anders"]
[Result "0-1"]
[TimeControl "15 minutes + 5 seconds per move from move one (Round 1 - 2) / 30 minutes + 10 seconds per move from move one (Round 3 - 9)"]
[WhiteTitle "GM"]
[WhiteFideId "2200031"]
[BlackFideId "1704818"]
[WhiteElo "2318"]
[BlackElo "2104"]

1. d4 {[%clk 00:30:18]} d5 {[%clk 00:30:16]} {[%emt 00:00:05]} 2. Bf4 {[%clk
00:30:05]} {[%emt 00:00:23]} e6 {[%clk 00:30:22]} {[%emt 00:00:04]} 3. e3
{[%clk 00:30:13]} {[%emt 00:00:02]} Bd6 {[%clk 00:30:30]} {[%emt 00:00:02]} 4.
Bg3 {[%clk 00:30:19]} {[%emt 00:00:04]} c6 {[%clk 00:30:25]} {[%emt 00:00:15]}
5. Nf3 {[%clk 00:30:02]} {[%emt 00:00:27]} Qc7 {[%clk 00:30:24]} {[%emt
00:00:11]} 6. c4 {[%clk 00:29:49]} {[%emt 00:00:23]} Nd7 {[%clk 00:30:21]}
{[%emt 00:00:13]} 7. Nc3 {[%clk 00:29:07]} {[%emt 00:00:53]} Ngf6 {[%clk
00:30:28]} {[%emt 00:00:02]} 8. Rc1 {[%clk 00:27:37]} {[%emt 00:01:41]} Bxg3
{[%clk 00:30:19]} {[%emt 00:00:18]} 9. hxg3 {[%clk 00:27:45]} {[%emt 00:00:02]}
O-O {[%clk 00:30:10]} {[%emt 00:00:20]} 10. cxd5 {[%clk 00:27:13]} {[%emt
00:00:42]} exd5 {[%clk 00:30:16]} {[%emt 00:00:04]} 11. Bd3 {[%clk 00:25:44]}
{[%emt 00:01:39]} Qd6 {[%clk 00:28:10]} {[%emt 00:02:16]} 12. g4 {[%clk
00:25:08]} {[%emt 00:00:45]} g6 {[%clk 00:26:13]} {[%emt 00:02:07]} 13. g5
{[%clk 00:25:09]} {[%emt 00:00:08]} Ng4 {[%clk 00:17:01]} {[%emt 00:09:23]} 14.
Rh4 {[%clk 00:21:34]} {[%emt 00:03:44]} f5 {[%clk 00:17:05]} {[%emt 00:00:08]}
15. Ne2 {[%clk 00:17:52]} {[%emt 00:03:51]} Re8 {[%clk 00:16:50]} {[%emt
00:00:26]} 16. Qd2 {[%clk 00:16:50]} {[%emt 00:01:11]} Nf8 {[%clk 00:16:21]}
{[%emt 00:00:39]} 17. Kf1 {[%clk 00:15:20]} {[%emt 00:01:40]} Qe7 {[%clk
00:14:24]} {[%emt 00:02:08]} 18. Nf4 {[%clk 00:11:43]} {[%emt 00:03:47]} h6
{[%clk 00:13:56]} {[%emt 00:00:38]} 19. Rxg4 {[%clk 00:09:13]} {[%emt
00:02:39]} fxg4 {[%clk 00:14:01]} {[%emt 00:00:05]} 20. Ne5 {[%clk 00:08:57]}
{[%emt 00:00:27]} hxg5 {[%clk 00:13:45]} {[%emt 00:00:26]} 21. Nfxg6 {[%clk
00:08:30]} {[%emt 00:00:37]} Nxg6 {[%clk 00:13:51]} {[%emt 00:00:04]} 22. Bxg6
{[%clk 00:08:22]} {[%emt 00:00:18]} Rf8 {[%clk 00:13:59]} {[%emt 00:00:02]} 23.
g3 {[%clk 00:07:18]} {[%emt 00:01:13]} Qf6 {[%clk 00:07:42]} {[%emt 00:06:28]}
24. Qe2 {[%clk 00:06:51]} {[%emt 00:00:35]} Kg7 {[%clk 00:07:01]} {[%emt
00:00:52]} 25. Bh5 {[%clk 00:04:21]} {[%emt 00:02:40]} Qh6 {[%clk 00:06:37]}
{[%emt 00:00:35]} 26. Kg2 {[%clk 00:03:50]} {[%emt 00:00:41]} Qxh5 {[%clk
00:06:25]} {[%emt 00:00:22]} 27. Rh1 {[%clk 00:03:58]} {[%emt 00:00:02]} Qe8
{[%clk 00:06:21]} {[%emt 00:00:13]} 28. e4 {[%clk 00:02:56]} {[%emt 00:01:12]}
Rh8 {[%clk 00:00:43]} {[%emt 00:05:48]} 29. Qe3 {[%clk 00:02:38]} {[%emt
00:00:28]} Kf6 {[%clk 00:00:30]} {[%emt 00:00:24]} 30. exd5 {[%clk 00:02:34]}
{[%emt 00:00:13]} Bf5 {[%clk 00:00:31]} {[%emt 00:00:10]} 31. dxc6 {[%clk
00:02:23]} {[%emt 00:00:21]} bxc6 {[%clk 00:00:40]} {[%emt 00:00:01]} 32. Rc1
{[%clk 00:00:57]} {[%emt 00:01:36]} Rc8 {[%clk 00:00:39]} {[%emt 00:00:10]} 33.
Re1 {[%clk 00:00:44]} {[%emt 00:00:23]} Qe6 {[%clk 00:00:42]} {[%emt 00:00:07]}
34. Kg1 {[%clk 00:00:17]} {[%emt 00:00:38]} Qd5 {[%clk 00:00:41]} {[%emt
00:00:11]} 35. f3 {[%clk 00:00:17]} {[%emt 00:00:10]} Rcd8 {[%clk 00:00:45]}
{[%emt 00:00:06]} 36. fxg4 {[%clk 00:00:15]} {[%emt 00:00:11]} Qh1+ {[%clk
00:00:49]} {[%emt 00:00:05]} 0-1